bitfinex/quotes_BTCUSD_20250115
["timestamp","ask_amount","ask_price","bid_price","bid_amount"]
[1736945910886,0.001,97050.0,97048.0,0.17979179]
[1736945911529,0.09556803,97055.0,97049.0,0.206081]
[1736945911667,0.09756803,97055.0,97049.0,0.206081]
[1736945912050,0.09456803,97055.0,97049.0,0.206081]
[1736945912252,0.001,97050.0,97049.0,0.206081]
[1736945912447,0.002,97050.0,97049.0,0.26645776]
[1736945912651,0.001,97050.0,97048.0,0.12490291]
[1736945912910,0.09656803,97055.0,97048.0,0.12490291]
[1736945913075,0.09756803,97055.0,97048.0,0.12490291]
[1736945913699,0.09556803,97055.0,97048.0,0.12490291]
[1736945914345,0.09456803,97055.0,97048.0,0.12490291]
[1736945914644,0.001,97050.0,97048.0,0.12490291]
[1736945915191,0.20607,97054.0,97048.0,0.12490291]
[1736945915366,0.09556803,97055.0,97048.0,0.12490291]
[1736945915777,0.001,97050.0,97048.0,0.12490291]
[1736945916181,0.09277546,97054.0,97048.0,0.12490291]
[1736945916377,0.09477546,97054.0,97048.0,0.12490291]
[1736945916841,0.001,97050.0,97048.0,0.12490291]
[1736945917031,0.002,97050.0,97048.0,0.12490291]
[1736945918229,0.002,97050.0,97049.0,0.206081]
[1736945918481,0.001,97050.0,97049.0,0.206081]
[1736945919290,0.002,97050.0,97048.0,0.12490291]
[1736945919628,0.001,97050.0,97048.0,0.12490291]
[1736945919980,0.002,97050.0,97048.0,0.12490291]
[1736945920148,0.001,97050.0,97048.0,0.12490291]
[1736945921567,0.002,97050.0,97048.0,0.12490291]
[1736945921968,0.001,97050.0,97048.0,0.12490291]
[1736945926927,0.001,97050.0,97049.0,0.206081]
[1736945927664,0.001,97050.0,97049.0,0.26096888]
[1736945928268,0.09377546,97054.0,97049.0,0.26096888]
[1736945928730,0.001,97050.0,97049.0,0.26096888]
[1736945928933,0.001,97050.0,97049.0,0.206081]
[1736945929243,0.002,97050.0,97049.0,0.206081]
[1736945929438,0.001,97050.0,97049.0,0.206081]
[1736945929639,0.09277546,97054.0,97049.0,0.206081]
[1736945929877,0.09477546,97054.0,97049.0,0.412162]
[1736945930028,0.001,97050.0,97049.0,0.412162]
[1736945931527,0.001,97050.0,97049.0,0.46704948]
[1736945931947,0.09277546,97054.0,97049.0,0.46704948]
[1736945932144,0.09377546,97054.0,97049.0,0.46704948]
[1736945932357,0.001,97050.0,97049.0,0.46704948]
[1736945933946,0.002,97050.0,97049.0,0.412162]
[1736945936884,0.002,97050.0,97049.0,0.4130156]
[1736945958772,0.002,97050.0,97049.0,0.66234252]
[1736945958981,0.002,97050.0,97049.0,0.81234252]
[1736945959818,0.002,97050.0,97049.0,0.94969488]
[1736945960142,0.001,97050.0,97049.0,0.94969488]
[1736945960584,0.00179257,97055.0,97054.0,0.35607]
[1736945961824,0.00179257,97055.0,97054.0,0.35807]
[1736945962428,0.00179257,97055.0,97054.0,0.35907]
[1736945963492,0.00179257,97055.0,97054.0,0.45900114]
[1736945963724,0.00179257,97055.0,97054.0,0.20607]
[1736945964319,0.00179257,97055.0,97049.0,0.0474536]
[1736945964495,0.00179257,97055.0,97054.0,0.001]
[1736945965137,0.00179257,97055.0,97050.0,0.206078]
[1736945965343,0.00179257,97055.0,97049.0,0.0008536]
[1736945965526,0.00379257,97055.0,97049.0,0.0008536]
[1736945965740,0.00279257,97055.0,97049.0,0.2069336]
[1736945966100,0.00479257,97055.0,97049.0,0.2069336]
[1736945966903,0.00379257,97055.0,97049.0,0.2069336]
[1736945967310,0.00479257,97055.0,97049.0,0.2069336]
[1736945967921,0.00679257,97055.0,97049.0,0.2069336]
[1736945972635,0.00679257,97055.0,97049.0,0.0008536]
[1736945972866,0.00679257,97055.0,97049.0,0.2069326]
[1736945975234,0.00679257,97055.0,97053.0,0.206072]
[1736945975999,0.00479257,97055.0,97053.0,0.206072]
[1736945976442,0.00679257,97055.0,97053.0,0.206072]
[1736945977955,0.00379257,97055.0,97053.0,0.206072]
[1736945978934,0.00579257,97055.0,97053.0,0.206072]
[1736945979140,0.00579257,97055.0,97054.0,0.06820782]
[1736945979860,0.00579257,97055.0,97053.0,0.206072]
[1736945981555,0.00179257,97055.0,97053.0,0.206072]
[1736945981998,0.00579257,97055.0,97053.0,0.206072]
[1736945982203,0.00379257,97055.0,97053.0,0.206072]
[1736945982412,0.00179257,97055.0,97053.0,0.206072]
[1736945982621,0.00379257,97055.0,97053.0,0.206072]
[1736945982789,0.00579257,97055.0,97050.0,0.206079]
[1736945984233,0.00579257,97055.0,97053.0,0.206072]
[1736945984747,0.00379257,97055.0,97053.0,0.206072]
[1736945985727,0.00579257,97055.0,97053.0,0.206072]
[1736945985940,0.00379257,97055.0,97053.0,0.27577115]
[1736945986150,0.00579257,97055.0,97053.0,0.27577115]
[1736945987232,0.00579257,97055.0,97053.0,0.206072]
[1736945988684,0.00579257,97055.0,97054.0,0.0474]
[1736945989537,0.00179257,97055.0,97054.0,0.0474]
[1736945989943,0.00479257,97055.0,97054.0,0.0474]
[1736945991487,0.00279257,97055.0,97054.0,0.0474]
[1736945991688,0.00379257,97055.0,97054.0,0.12183915]
[1736945991863,0.00379257,97055.0,97054.0,0.21506417]
[1736945992494,0.00279257,97055.0,97054.0,0.21506417]
[1736945992838,0.00179257,97055.0,97054.0,0.49229109]
[1736945993417,0.00179257,97055.0,97054.0,0.49429109]
[1736945993591,0.00279257,97055.0,97054.0,0.49429109]
[1736945994402,0.00179257,97055.0,97054.0,0.49429109]
[1736945994799,0.00179257,97055.0,97054.0,0.49229109]
[1736945995017,0.00179257,97055.0,97054.0,0.49729109]
[1736945995413,0.00179257,97055.0,97054.0,0.49229109]
[1736945995624,0.00179257,97055.0,97054.0,0.49929109]
[1736945997377,1.4e-07,97056.0,97055.0,0.608268]
[1736945997567,1.4e-07,97056.0,97055.0,0.81672184]
[1736945998768,1.4e-07,97056.0,97055.0,0.82372184]
[1736945998975,1.4e-07,97056.0,97055.0,0.82572184]
[1736945999456,1.4e-07,97056.0,97055.0,0.70272184]
[1736945999579,1.4e-07,97056.0,97055.0,0.344268]
[1736946000525,1.4e-07,97056.0,97055.0,0.494268]
[1736946001187,1.4e-07,97056.0,97055.0,0.215068]
[1736946002147,1.4e-07,97056.0,97055.0,0.206068]
[1736946002747,1.4e-07,97056.0,97055.0,0.26917665]
[1736946003000,1.4e-07,97056.0,97055.0,0.27317665]
[1736946003315,1.4e-07,97056.0,97055.0,0.26917665]
[1736946003521,0.00200014,97056.0,97055.0,0.67780357]
[1736946003742,0.00300014,97056.0,97055.0,0.67780357]
[1736946004171,0.00200014,97056.0,97055.0,0.67780357]
[1736946004776,0.00200014,97056.0,97055.0,0.69873193]
[1736946004975,1.4e-07,97056.0,97055.0,0.69873193]
[1736946005304,0.00200014,97056.0,97055.0,0.69973193]
[1736946005545,1.4e-07,97056.0,97055.0,0.69973193]
[1736946005763,1.4e-07,97056.0,97055.0,0.67880357]
[1736946005912,1.4e-07,97056.0,97055.0,0.68780357]
[1736946006893,1.4e-07,97056.0,97055.0,0.68680357]
[1736946007492,1.4e-07,97056.0,97055.0,0.68980357]
[1736946008047,1.4e-07,97056.0,97055.0,0.69065717]
[1736946009783,1.4e-07,97056.0,97055.0,0.79065717]
[1736946012191,7.1e-07,97059.0,97058.0,1.023662]
[1736946012375,7.1e-07,97059.0,97058.0,1.23211584]
[1736946012588,7.1e-07,97059.0,97058.0,1.30741584]
[1736946012992,8.6e-07,97061.0,97060.0,0.1]
[1736946013226,8.6e-07,97061.0,97060.0,0.50245686]
[1736946013434,8.6e-07,97061.0,97060.0,0.50142692]
[1736946013634,8.6e-07,97061.0,97060.0,0.52722326]
[1736946013811,8.6e-07,97061.0,97060.0,1.17182326]
[1736946014757,8.6e-07,97061.0,97060.0,1.17482326]
[1736946015669,8.6e-07,97061.0,97060.0,1.18182326]
[1736946016053,0.00179341,97099.0,97080.0,0.356015]
[1736946016265,0.00179341,97099.0,97080.0,0.64304342]
[1736946017473,0.00188362,97081.0,97080.0,0.64304342]
[1736946017969,0.00188362,97081.0,97080.0,0.65204342]
[1736946018150,0.00188362,97081.0,97080.0,0.64604342]
[1736946018770,0.00188362,97081.0,97080.0,0.4495165]
[1736946018939,0.00188362,97081.0,97080.0,0.365015]
[1736946020298,0.00188362,97081.0,97080.0,0.368015]
[1736946020741,0.00188362,97081.0,97080.0,0.359015]
[1736946020949,0.00188362,97081.0,97080.0,0.36647577]
[1736946021170,0.00188362,97081.0,97080.0,0.43458442]
[1736946021358,0.00188362,97081.0,97080.0,0.42958442]
[1736946021778,0.00188362,97081.0,97080.0,0.50868442]
[1736946022506,0.00188362,97081.0,97080.0,0.50668442]
[1736946022709,0.00188362,97081.0,97080.0,0.61091134]
[1736946023214,0.00188362,97081.0,97080.0,0.68311134]
[1736946023789,0.00188362,97081.0,97080.0,0.68811134]
[1736946024146,0.00188362,97081.0,97080.0,0.68411134]
[1736946024261,0.00188362,97081.0,97080.0,0.68311134]
[1736946024489,0.00188362,97081.0,97080.0,0.68711134]
[1736946024723,0.00188362,97081.0,97080.0,0.68811134]
[1736946025062,0.00188362,97081.0,97080.0,0.68711134]
[1736946025270,0.00188362,97081.0,97080.0,0.68311134]
[1736946025578,0.00188362,97081.0,97080.0,0.69011134]
[1736946025788,0.00188362,97081.0,97080.0,0.79011134]
[1736946025990,0.00188362,97081.0,97080.0,0.79111134]
[1736946027192,0.00188362,97081.0,97080.0,0.81039882]
[1736946027594,0.00188362,97081.0,97080.0,0.81239882]
[1736946030142,0.00188362,97081.0,97080.0,1.35699882]
[1736946037166,0.00179341,97099.0,97097.0,0.355979]
[1736946037370,0.00179341,97099.0,97097.0,0.55045382]
[1736946038620,0.00179341,97099.0,97097.0,0.57345382]
[1736946038965,0.00179341,97099.0,97097.0,0.4462269]
[1736946039704,0.00179341,97099.0,97097.0,0.3998269]
[1736946040049,0.00179341,97099.0,97097.0,0.4058269]
[1736946040235,0.00179341,97099.0,97097.0,0.3998269]
[1736946040443,0.00179341,97099.0,97097.0,0.4008269]
[1736946040645,0.00179341,97099.0,97097.0,0.4058269]
[1736946040897,0.00179341,97099.0,97097.0,0.41122122]
[1736946041377,0.00179341,97099.0,97097.0,0.41422122]
[1736946043551,0.08499341,97098.0,97097.0,0.37037332]
[1736946043811,0.08499341,97098.0,97097.0,0.003]
[1736946044015,0.18922033,97098.0,97097.0,0.003]
[1736946044734,0.18922033,97098.0,97079.0,0.206016]
[1736946044878,0.10422692,97097.0,97079.0,0.206016]
[1736946045073,0.205991,97092.0,97079.0,0.4532368]
[1736946046306,0.205991,97092.0,97079.0,0.2472198]
[1736946046503,0.411982,97092.0,97079.0,0.2472198]
[1736946047373,0.413982,97092.0,97079.0,0.2472198]
[1736946047533,0.4139305,97092.0,97079.0,0.2472198]
[1736946047739,0.4139305,97092.0,97081.0,0.206013]
[1736946047931,0.4139305,97092.0,97080.0,0.04532438]
[1736946048166,0.4139305,97092.0,97079.0,0.206016]
[1736946048563,0.4119305,97092.0,97079.0,0.206016]
[1736946048917,0.4139305,97092.0,97079.0,0.206016]
[1736946049049,0.206,97088.0,97076.0,0.206022]
[1736946049655,0.206,97088.0,97076.0,0.412045]
[1736946049859,0.206,97088.0,97078.0,0.206019]
[1736946050096,0.205992,97091.0,97078.0,0.206019]
[1736946051191,0.205984,97095.0,97077.0,0.0412045]
[1736946051369,0.411984,97091.0,97076.0,0.206022]
[1736946051766,0.411984,97091.0,97076.0,0.412045]
[1736946052084,0.411984,97091.0,97076.0,0.206022]
[1736946052271,0.413984,97091.0,97076.0,0.206022]
[1736946052473,0.207992,97091.0,97079.0,0.206016]
[1736946052718,0.207992,97091.0,97079.0,0.2472198]
[1736946052974,0.205992,97091.0,97079.0,0.2472198]
[1736946053211,0.10422692,97094.0,97079.0,0.0412038]
[1736946053428,0.205998,97089.0,97079.0,0.0412038]
[1736946054791,0.205998,97089.0,97080.0,0.206015]
[1736946054998,0.205998,97089.0,97080.0,0.25133908]
[1736946055437,0.205998,97089.0,97080.0,0.04532408]
[1736946056182,0.205998,97089.0,97079.0,0.206016]
[1736946056183,0.207998,97089.0,97079.0,0.206016]
[1736946056387,0.207998,97089.0,97076.0,0.20781393]
[1736946057181,0.205998,97089.0,97076.0,0.20781393]
[1736946057646,0.205998,97089.0,97079.0,0.206015]
[1736946058016,0.205998,97089.0,97076.0,0.20781393]
[1736946058216,0.205998,97089.0,97079.0,0.206016]
[1736946059141,0.205998,97089.0,97078.0,0.206019]
[1736946059350,0.207998,97089.0,97078.0,0.206019]
[1736946060115,0.20599,97092.0,97078.0,0.206019]
[1736946060314,0.206,97088.0,97078.0,0.206019]
[1736946060516,0.002,97089.0,97079.0,0.04346173]
[1736946060643,0.205998,97088.0,97079.0,0.04346173]
[1736946060846,0.205998,97088.0,97077.0,0.02078139]
[1736946061051,0.10422692,97092.0,97076.0,0.00179193]
[1736946061253,0.10422692,97091.0,97077.0,0.206022]
[1736946061779,0.205994,97090.0,97077.0,0.206022]
[1736946063177,0.205994,97090.0,97076.0,0.00179193]
[1736946063384,0.31021892,97091.0,97077.0,0.206022]
[1736946063607,0.31021892,97091.0,97077.0,0.24740589]
[1736946064197,0.31221892,97091.0,97077.0,0.206022]
[1736946065140,0.10622692,97091.0,97076.0,0.00179193]
[1736946065373,0.0758,97078.0,97076.0,0.00179193]
[1736946065574,0.31024892,97077.0,97076.0,0.00179193]
[1736946066316,0.31024892,97077.0,97076.0,0.00279193]
[1736946066520,0.40302438,97077.0,97076.0,0.00279193]
[1736946066717,0.40302438,97077.0,97076.0,0.00179193]
[1736946067881,0.40302438,97077.0,97076.0,0.00279193]
[1736946068488,0.31024892,97077.0,97076.0,0.00279193]
[1736946068893,0.31324892,97077.0,97076.0,0.00279193]
[1736946070264,0.12249357,97070.0,97055.0,0.20029821]
[1736946070449,0.206039,97069.0,97055.0,9.169e-05]
[1736946071283,0.206039,97069.0,97056.0,0.05379429]
[1736946071481,0.206032,97073.0,97057.0,0.206064]
[1736946072453,0.005,97070.0,97057.0,0.206064]
[1736946072646,0.211037,97070.0,97056.0,0.05379429]
[1736946072779,0.206041,97068.0,97055.0,9.169e-05]
[1736946073636,0.206041,97068.0,97057.0,0.001]
[1736946073868,0.206045,97066.0,97057.0,0.001]
[1736946074043,0.206045,97066.0,97055.0,9.169e-05]
[1736946075170,0.004,97068.0,97056.0,0.02078739]
[1736946075506,0.206038,97070.0,97057.0,0.0469]
[1736946075947,0.003,97066.0,97057.0,0.0469]
[1736946076100,0.206038,97070.0,97057.0,0.0469]
[1736946076510,0.004,97068.0,97057.0,0.0469]
[1736946076720,0.004,97068.0,97057.0,0.10268767]
[1736946076923,0.004,97068.0,97057.0,0.0469]
[1736946077120,0.003,97066.0,97061.0,0.0771]
[1736946077352,0.003,97073.0,97065.0,0.0469]
[1736946077529,0.09277546,97089.0,97072.0,0.206032]
[1736946077731,0.09277546,97089.0,97077.0,0.206021]
[1736946077932,0.09277546,97089.0,97078.0,0.0412053]
[1736946078338,0.09277546,97089.0,97086.0,0.206001]
[1736946078543,0.18552959,97094.0,97086.0,0.206001]
[1736946078544,4e-05,97100.0,97091.0,0.205992]
[1736946078771,4e-05,97100.0,97091.0,0.283592]
[1736946079085,4e-05,97100.0,97091.0,0.330692]
[1736946079916,4e-05,97100.0,97091.0,0.0471]
[1736946080121,0.206014,97100.0,97091.0,0.0471]
[1736946080712,4e-05,97100.0,97091.0,0.0471]
[1736946083134,0.0018533,97092.0,97091.0,0.0471]
[1736946089371,0.0018533,97092.0,97091.0,0.1247]
[1736946089556,0.0018533,97092.0,97091.0,0.37892692]
[1736946089834,0.0018533,97092.0,97091.0,0.40192692]
[1736946090007,0.0018533,97092.0,97091.0,0.50615384]
[1736946090206,0.0018533,97092.0,97091.0,0.60615384]
[1736946091988,0.0018533,97092.0,97091.0,0.61195384]
[1736946092362,0.0008533,97092.0,97091.0,0.61195384]
[1736946092502,0.0008533,97092.0,97091.0,0.61895384]
[1736946092705,0.0018533,97092.0,97091.0,0.61895384]
[1736946092906,0.0018533,97092.0,97091.0,0.61195384]
[1736946093425,0.0008533,97092.0,97091.0,0.61795384]
[1736946093627,0.0008533,97092.0,97091.0,0.61195384]
[1736946093863,0.0008533,97092.0,97091.0,0.60615384]
[1736946094068,0.0008533,97092.0,97091.0,0.62395384]
[1736946095149,0.0008533,97092.0,97091.0,0.51972692]
[1736946098143,0.0013533,97092.0,97091.0,0.51972692]
[1736946101801,4e-05,97100.0,97097.0,0.1]
[1736946101967,4e-05,97100.0,97097.0,0.50235645]
[1736946102165,0.00179277,97132.0,97102.0,0.1]
[1736946102365,0.00228752,97132.0,97131.0,0.205907]
[1736946102898,0.00228752,97132.0,97131.0,0.20693644]
[1736946103446,0.00228752,97132.0,97131.0,0.205907]
[1736946103683,0.00528752,97132.0,97131.0,0.32156856]
[1736946103935,0.00528752,97132.0,97131.0,0.3205392]
[1736946104151,0.00228752,97132.0,97131.0,0.3474515]
[1736946104353,0.00228752,97132.0,97131.0,0.3494515]
[1736946104510,0.00228752,97132.0,97131.0,0.3474515]
[1736946104684,0.00228752,97132.0,97131.0,0.4974515]
[1736946105062,0.00228752,97132.0,97131.0,0.6215515]
[1736946106031,0.00228752,97132.0,97131.0,0.6235515]
[1736946106460,0.00428752,97132.0,97131.0,0.6235515]
[1736946106621,0.00428752,97132.0,97131.0,0.6215515]
[1736946106823,0.00228752,97132.0,97131.0,0.6245515]
[1736946107267,0.00228752,97132.0,97131.0,0.6255515]
[1736946112299,0.00228752,97132.0,97131.0,0.5014515]
[1736946113854,0.00228752,97132.0,97131.0,0.5831515]
[1736946114792,0.00228752,97132.0,97131.0,0.58215897]
[1736946116326,0.00228752,97132.0,97131.0,0.35891447]
[1736946117314,0.00228752,97132.0,97131.0,0.35791447]
[1736946117723,0.00228752,97132.0,97131.0,0.35491447]
[1736946117923,0.00228752,97132.0,97131.0,0.35591447]
[1736946118347,0.00228752,97132.0,97131.0,0.46014139]
[1736946118544,0.00228752,97132.0,97131.0,0.55444108]
[1736946119409,0.00228752,97132.0,97131.0,0.55344108]
[1736946119542,0.00228752,97132.0,97131.0,0.55444108]
[1736946120198,0.00228752,97132.0,97131.0,0.55744108]
[1736946120401,0.00228752,97132.0,97131.0,0.55844108]
[1736946122775,0.00228752,97132.0,97131.0,0.66314108]
[1736946123508,5.2e-07,97132.0,97131.0,0.76314108]
[1736946123915,5.2e-07,97132.0,97131.0,0.76214108]
[1736946124146,5.2e-07,97132.0,97131.0,0.75914108]
[1736946124321,5.2e-07,97132.0,97131.0,0.76714108]
[1736946124684,5.2e-07,97132.0,97131.0,0.75914108]
[1736946124884,5.2e-07,97132.0,97131.0,0.76814108]
[1736946125307,5.2e-07,97132.0,97131.0,0.76714108]
[1736946125714,5.2e-07,97132.0,97131.0,0.76914108]
[1736946128345,5.2e-07,97132.0,97131.0,0.77093217]
[1736946128749,0.00085342,97132.0,97131.0,0.77093217]
[1736946128959,0.00085342,97132.0,97131.0,1.31553217]
[1736946130924,4.2e-07,97132.0,97131.0,1.41553217]
[1736946131316,4.2e-07,97132.0,97131.0,1.42133217]
[1736946132433,4.2e-07,97132.0,97131.0,1.41933217]
[1736946132631,4.2e-07,97132.0,97131.0,1.42333217]
[1736946133604,4.2e-07,97132.0,97131.0,1.41433217]
[1736946134236,4.2e-07,97132.0,97131.0,1.42333217]
[1736946136269,4.2e-07,97132.0,97131.0,1.51552361]
[1736946137235,4.2e-07,97132.0,97131.0,1.42333217]
[1736946137675,0.00175299,97141.0,97140.0,1.148588]
[1736946137876,2.9e-07,97141.0,97140.0,1.29402022]
[1736946138254,2.9e-07,97141.0,97140.0,1.39402022]
[1736946138458,0.0008536,97159.0,97158.0,0.58095]
[1736946138669,0.0008536,97159.0,97158.0,0.60817692]
[1736946138871,0.0008536,97159.0,97158.0,0.53097692]
[1736946139073,0.0008536,97159.0,97158.0,0.63354581]
[1736946139707,0.0008536,97159.0,97158.0,0.63454581]
[1736946140098,0.0008536,97159.0,97158.0,0.63354581]
[1736946140298,0.0008536,97159.0,97158.0,0.35585]
[1736946140854,0.0008536,97159.0,97158.0,0.36385]
[1736946141056,0.0008536,97159.0,97158.0,0.35585]
[1736946141260,0.0008536,97159.0,97158.0,0.48307692]
[1736946141490,0.0008536,97159.0,97158.0,0.50043997]
[1736946141689,0.0008536,97159.0,97158.0,0.58665517]
[1736946142033,0.0008536,97159.0,97158.0,0.58465517]
[1736946143067,0.0008536,97159.0,97158.0,0.58565517]
[1736946143302,0.0008536,97159.0,97158.0,0.58665517]
[1736946143453,0.0008536,97159.0,97158.0,0.58565517]
[1736946143825,0.0008536,97159.0,97158.0,0.59165517]
[1736946144098,0.0008536,97159.0,97158.0,0.37321305]
[1736946144743,0.0008536,97159.0,97158.0,0.37221305]
[1736946145152,0.0008536,97159.0,97158.0,0.36721305]
[1736946145504,0.0008536,97159.0,97158.0,0.36621305]
[1736946146604,0.0008536,97159.0,97158.0,0.37021305]
[1736946147230,0.0008536,97159.0,97158.0,0.47140555]
[1736946147433,0.0008536,97159.0,97158.0,0.39321305]
[1736946151598,0.0007297,97159.0,97158.0,0.39321305]
[1736946152144,0.0007297,97159.0,97158.0,0.24321305]
[1736946153148,0.0007297,97159.0,97158.0,0.004]
[1736946153380,0.0776297,97159.0,97158.0,0.004]
[1736946153803,0.0776297,97159.0,97158.0,0.006]
[1736946154032,0.0776297,97159.0,97127.0,0.18535236]
[1736946154253,0.0787,97151.0,97140.0,0.15]
[1736946154745,0.0787,97151.0,97134.0,0.023]
[1736946154986,0.0787,97151.0,97137.0,0.173]
[1736946155428,0.0787,97151.0,97136.0,0.173]
[1736946155659,0.0787,97151.0,97131.0,0.01242728]
[1736946155879,0.0787,97151.0,97138.0,0.20589]
[1736946156108,0.0787,97151.0,97139.0,0.15]
[1736946156743,0.0787,97151.0,97140.0,0.205888]
[1736946157877,0.0787,97151.0,97141.0,0.1911778]
[1736946159352,0.0787,97151.0,97141.0,0.15]
[1736946160344,0.0787,97151.0,97142.0,0.205884]
[1736946161121,0.0787,97151.0,97145.0,0.205876]
[1736946161607,0.0787,97151.0,97142.0,0.205884]
[1736946164365,0.0787,97151.0,97142.0,0.20767614]
[1736946164527,0.0787,97151.0,97142.0,0.26403265]
[1736946165334,0.0787,97151.0,97142.0,0.20767614]
[1736946165454,0.0787,97151.0,97145.0,0.205876]
[1736946169315,0.0787,97151.0,97145.0,0.411753]
[1736946169954,0.0787,97151.0,97145.0,0.205876]
[1736946170410,0.0787,97151.0,97148.0,0.20587]
[1736946170603,0.0787,97151.0,97148.0,0.05737066]
[1736946170809,0.0787,97151.0,97142.0,0.20767514]
[1736946171013,0.0787,97151.0,97142.0,0.00179214]
[1736946171302,0.0787,97151.0,97142.0,0.20767514]
[1736946171919,0.0787,97151.0,97142.0,0.41355914]
[1736946172117,0.0787,97151.0,97145.0,0.205876]
[1736946175031,0.0787,97151.0,97142.0,0.20767514]
[1736946177310,0.0787,97151.0,97145.0,0.00179214]
[1736946177627,0.0007297,97159.0,97149.0,0.205867]
[1736946179883,0.0007297,97159.0,97153.0,0.205859]
[1736946180065,0.0007297,97159.0,97154.0,0.0205859]
[1736946180568,0.0007297,97159.0,97157.0,0.023]
[1736946180831,0.0007297,97159.0,97158.0,0.27685]
[1736946183492,0.0007297,97159.0,97158.0,0.27985]
[1736946184736,0.0007297,97159.0,97158.0,0.003]
[1736946185747,0.0007297,97159.0,97145.0,0.20766814]
[1736946185970,0.20585,97158.0,97147.0,0.205873]
[1736946186402,0.20585,97158.0,97146.0,0.10422692]
[1736946186623,0.20585,97158.0,97145.0,0.20766814]
[1736946187259,0.20585,97158.0,97147.0,0.002]
[1736946187490,0.0007297,97159.0,97149.0,0.205868]
[1736946187641,0.0007297,97159.0,97150.0,0.04135351]
[1736946187863,0.0007297,97159.0,97155.0,0.205854]
[1736946188678,0.0007297,97159.0,97155.0,0.411709]
[1736946189285,0.0007297,97159.0,97158.0,0.00179214]
[1736946190644,0.0007297,97159.0,97158.0,0.00279214]
[1736946190842,0.0007297,97159.0,97158.0,0.02579214]
[1736946191454,0.0007297,97159.0,97158.0,0.06954275]
[1736946192486,0.0007297,97159.0,97158.0,0.02579214]
[1736946193483,0.0007297,97159.0,97158.0,0.0268213]
[1736946193683,0.0007297,97159.0,97158.0,0.02579214]
[1736946195845,0.0007297,97159.0,97158.0,0.02585314]
[1736946196752,0.0007297,97159.0,97158.0,0.10315314]
[1736946196959,0.0007297,97159.0,97158.0,0.19503585]
[1736946197157,0.0007297,97159.0,97158.0,0.20554835]
[1736946198753,0.0007297,97159.0,97158.0,0.35554835]
[1736946207813,0.2015377,97178.0,97170.0,0.205824]
[1736946208039,0.2015377,97178.0,97171.0,0.023]
[1736946208239,0.2015377,97178.0,97171.0,0.0664654]
[1736946208971,0.00014822,97178.0,97171.0,0.023]
[1736946210431,0.00014822,97178.0,97176.0,0.205811]
[1736946210604,0.00014822,97178.0,97177.0,0.023]
[1736946213585,0.00100162,97178.0,97177.0,0.023]
[1736946215008,0.00100162,97178.0,97177.0,0.10061224]
[1736946216291,0.00100162,97178.0,97177.0,0.023]
[1736946221132,0.00100162,97178.0,97175.0,0.205812]
[1736946222440,0.00100162,97178.0,97177.0,0.20581]
[1736946223052,0.00100162,97178.0,97177.0,0.22881]
[1736946225941,0.00100162,97178.0,97165.0,0.01019355]
[1736946225942,0.0814,97177.0,97165.0,0.01019355]
[1736946226165,0.0814,97177.0,97158.0,0.08325314]
[1736946226166,0.10422692,97176.0,97158.0,0.00185314]
[1736946226379,0.20582,97172.0,97161.0,0.205842]
[1736946226624,0.00100162,97178.0,97168.0,0.023]
[1736946226770,0.20581,97177.0,97168.0,0.023]
[1736946227147,0.00100162,97178.0,97168.0,0.023]
[1736946227148,0.09243147,97173.0,97169.0,0.023]
[1736946228162,0.09243147,97175.0,97168.0,0.023]
[1736946228568,0.09243147,97175.0,97167.0,0.023]
[1736946228776,0.09243147,97175.0,97172.0,0.023]
[1736946229184,0.29924109,97178.0,97169.0,0.023]
[1736946230262,0.001,97175.0,97169.0,0.023]
[1736946230855,0.20680962,97178.0,97169.0,0.023]
[1736946231056,0.20780962,97178.0,97169.0,0.023]
[1736946231723,0.00100162,97178.0,97171.0,0.023]
[1736946232119,0.001,97175.0,97171.0,0.023]
[1736946233346,0.00100162,97178.0,97171.0,0.023]
[1736946234138,0.20680962,97178.0,97171.0,0.023]
[1736946234377,0.20680962,97178.0,97170.0,0.023]
[1736946234810,0.20680962,97178.0,97170.0,0.086185]
[1736946235207,0.20680962,97178.0,97170.0,0.023]
[1736946236395,0.29924109,97178.0,97170.0,0.023]
[1736946238097,0.09243147,97177.0,97170.0,0.023]
[1736946239309,0.09243147,97175.0,97170.0,0.023]
[1736946240047,0.09243147,97174.0,97170.0,0.023]
[1736946241484,0.09243147,97175.0,97170.0,0.023]
[1736946242047,0.09243147,97175.0,97170.0,0.0806966]
[1736946242260,0.09243147,97175.0,97172.0,0.023]
[1736946242489,0.09243147,97176.0,97172.0,0.023]
[1736946243322,0.09243147,97176.0,97174.0,0.023]
[1736946243534,0.09343309,97178.0,97176.0,0.023]
[1736946243739,0.09343309,97178.0,97177.0,0.1256631]
[1736946243948,0.09343309,97178.0,97177.0,0.3314731]
[1736946244331,0.00100162,97178.0,97177.0,0.3314731]
[1736946246485,0.00100162,97178.0,97177.0,0.34159387]
[1736946247004,0.00100162,97178.0,97177.0,0.49159387]
[1736946247256,0.00100162,97178.0,97177.0,0.56959387]
[1736946248112,0.00100162,97178.0,97177.0,0.57159387]
[1736946249643,0.00100162,97178.0,97177.0,0.67582079]
[1736946250705,0.0008533,97190.0,97189.0,0.505784]
[1736946250990,0.0008533,97190.0,97189.0,0.69116872]
[1736946253004,0.0008533,97190.0,97189.0,0.61001092]
[1736946253426,0.0008533,97190.0,97189.0,0.61301092]
[1736946254044,0.0008533,97190.0,97189.0,0.508784]
[1736946254405,0.0008533,97190.0,97189.0,0.358784]
[1736946254620,0.0008533,97190.0,97189.0,0.355784]
[1736946255017,0.0008533,97190.0,97189.0,0.356784]
[1736946255639,0.0008533,97190.0,97189.0,0.4336205]
[1736946256167,0.0008533,97190.0,97189.0,0.356784]
[1736946256412,0.0008533,97190.0,97189.0,0.277784]
[1736946256620,0.0008533,97190.0,97189.0,0.228784]
[1736946256848,0.0008533,97190.0,97189.0,0.001]
[1736946262069,0.0008533,97190.0,97189.0,0.27925574]
[1736946262298,0.0008533,97190.0,97189.0,0.50778989]
[1736946263141,0.0008533,97190.0,97189.0,0.51824782]
[1736946263553,0.0008533,97190.0,97189.0,0.51724782]
[1736946263969,0.0008533,97190.0,97189.0,0.51824782]
[1736946264402,0.0008533,97190.0,97189.0,0.52424782]
[1736946264822,0.0008533,97190.0,97189.0,0.42448485]
[1736946265256,0.0008533,97190.0,97189.0,0.29725793]
[1736946265453,0.0008533,97190.0,97189.0,0.007]
[1736946266134,0.0008533,97190.0,97189.0,0.006]
[1736946266527,0.0008533,97190.0,97189.0,0.007]
[1736946266675,0.0008533,97190.0,97189.0,0.001]